{"text_format":"1","workbook":"xlsx","n_sheets":3,"sheets":["Skoroszyt ocen","Podsumowanie wyników ucznia","Kryteria oceniania"],"not_rendered":{"charts":1,"images":1,"macros":1,"external_links":0,"defined_names":11,"comments":0,"pivot_tables":0},"unopened":[],"bounds":{"document_bytes":16777216,"sheet_cells":100000,"rows_first":2000,"rows_last":500,"rows_between":2000,"halvings":0,"cell_chars":16384,"cell_head_chars":4096},"cells_cut":0,"cells_raw":0,"read":"whole","date_system":"1900"}

{"sheet":"Skoroszyt ocen","index":0,"n_rows":8,"n_cols":9,"rows_kept":8,"cut":false,"hidden":false,"merged":[]}
[null,"Nazwa zajęć"]
[null,"Imię i nazwisko nauczyciela",null,null,null,"Data zadania","2011-01-18","2011-01-25","2011-02-01"]
[null,null,null,null,"Łączna liczba możliwych punktów",{"$f":"SUM(ŁącznePunktyZaZadanie[#Data])","v":90},20,20,50]
[null,"Imię i nazwisko ucznia","Osiągnięcia","Ocena","%","Łączna liczba zdobytych punktów","Zadanie pisemne na zajęciach 1","Zadanie pisemne na zajęciach 2","Brudnopis opowiadania"]
[null,"Uczeń 1",{"$f":"DaneUcznia[[#This Row],[Łączna liczba zdobytych punktów]]","v":90},{"$f":"IFERROR(VLOOKUP(DaneUcznia[[#This Row],[%]],TabelaOcen[],2,TRUE),\"\")","v":"A+"},{"$f":"IFERROR(DaneUcznia[[#This Row],[Łączna liczba zdobytych punktów]]/ŁącznePunkty,\"\")","v":1},{"$f":"IFERROR(SUM(DaneUcznia[[#This Row],[Zadanie pisemne na zajęciach 1]]:OFFSET(F5,,COUNTA(ŁącznePunktyZaZadanie[]))),\"\")","v":90},20,20,50]
[null,"Uczeń 2",{"$f":"DaneUcznia[[#This Row],[Łączna liczba zdobytych punktów]]","v":60},{"$f":"IFERROR(VLOOKUP(DaneUcznia[[#This Row],[%]],TabelaOcen[],2,TRUE),\"\")","v":"D"},{"$f":"IFERROR(DaneUcznia[[#This Row],[Łączna liczba zdobytych punktów]]/ŁącznePunkty,\"\")","v":0.66666666666666663},{"$f":"IFERROR(SUM(DaneUcznia[[#This Row],[Zadanie pisemne na zajęciach 1]]:OFFSET(F6,,COUNTA(ŁącznePunktyZaZadanie[]))),\"\")","v":60},10,10,40]
[null,"Uczeń 3",{"$f":"DaneUcznia[[#This Row],[Łączna liczba zdobytych punktów]]","v":75},{"$f":"IFERROR(VLOOKUP(DaneUcznia[[#This Row],[%]],TabelaOcen[],2,TRUE),\"\")","v":"B"},{"$f":"IFERROR(DaneUcznia[[#This Row],[Łączna liczba zdobytych punktów]]/ŁącznePunkty,\"\")","v":0.83333333333333337},{"$f":"IFERROR(SUM(DaneUcznia[[#This Row],[Zadanie pisemne na zajęciach 1]]:OFFSET(F7,,COUNTA(ŁącznePunktyZaZadanie[]))),\"\")","v":75},20,15,40]
[null,"Średnia ocen/wyników",null,{"$f":"IFERROR(VLOOKUP(DaneUcznia[[#Totals],[%]],TabelaOcen[],2,TRUE),\"\")","v":"B"},{"$f":"SUBTOTAL(101,DaneUcznia[%])","v":0.83333333333333337},{"$f":"SUBTOTAL(101,DaneUcznia[Łączna liczba zdobytych punktów])","v":75},{"$f":"SUBTOTAL(101,DaneUcznia[Zadanie pisemne na zajęciach 1])","v":16.666666666666668},{"$f":"SUBTOTAL(101,DaneUcznia[Zadanie pisemne na zajęciach 2])","v":15},{"$f":"SUBTOTAL(101,DaneUcznia[Brudnopis opowiadania])","v":43.333333333333336}]

{"sheet":"Podsumowanie wyników ucznia","index":1,"n_rows":51,"n_cols":8,"rows_kept":51,"cut":false,"hidden":false,"merged":[[7,1,7,3],[11,1,11,2],[35,1,44,7],[0,0,0,4]]}
["Nazwa szkoły"]
[null,{"$f":"ImięINazwiskoNauczyciela","v":"Imię i nazwisko nauczyciela"}]
[null,{"$f":"NazwaZajęć","v":"Nazwa zajęć"}]
[null,"Postępy do dnia"]
[null,"2011-09-22"]
[]
[null,"Imię i nazwisko ucznia:"]
[null,"Uczeń 1"]
[]
[]
[null,"Pozycja ucznia",null,"Ocena literowa","Procent","Punkty ucznia","Łączna liczba punktów","Średnia ocen"]
[null,{"$f":"IFERROR(_xlfn.RANK.EQ(VLOOKUP(B8,DaneUcznia[],5,FALSE),DaneUcznia[Łączna liczba zdobytych punktów]) & \" z \"&COUNTA(DaneUcznia[Imię i nazwisko ucznia]) & \" uczniów\",\"\")","v":"1 z 3 uczniów"},null,{"$f":"IFERROR(VLOOKUP(ImięINazwiskoUcznia,DaneUcznia[],3,FALSE),\"\")","v":"A+"},{"$f":"IFERROR(VLOOKUP(ImięINazwiskoUcznia,DaneUcznia[],4,FALSE),\"\")","v":1},{"$f":"IFERROR(VLOOKUP(ImięINazwiskoUcznia,DaneUcznia[],5,FALSE),\"\")","v":90},{"$f":"ŁącznePunkty","v":90},{"$f":"IFERROR(VLOOKUP(E12,TabelaOcen[],3,TRUE),\"\")","v":4}]
[]
[]
[]
[]
[]
[]
[]
[]
[]
[]
[]
[]
[]
[]
[]
[]
[]
[]
[]
[]
[]
[]
[null,"Komentarze nauczyciela"]
[]
[]
[]
[]
[]
[]
[]
[]
[]
[]
[]
[]
[null,"Podpis rodzica (jeśli wymagany)"]
[]
[]
[null,"X",null,null,null,"Data:"]

{"sheet":"Kryteria oceniania","index":2,"n_rows":21,"n_cols":4,"rows_kept":21,"cut":false,"hidden":false,"merged":[[4,1,4,3],[2,1,2,4]]}
[null,"Obliczanie oceny literowej"]
[]
[null,"W tabeli poniżej wprowadź zakresy procentowe dla każdej oceny literowej, aby dostosować szablon do kryteriów oceniania."]
[]
[null,"Tabela ocen i średniej ocen\n(Służy do obliczania ocen uczniów w  arkuszu Skoroszyt ocen)"]
[null,"Wynik","Otrzymana ocena literowa","Średnia ocen"]
[null,0,"F",0]
[null,0.6,"D-",0.67]
[null,0.63,"D",1]
[null,0.67,"D+",1.33]
[null,0.7,"C-",1.67]
[null,0.73,"C",2]
[null,0.77,"C+",2.33]
[null,0.8,"B-",2.67]
[null,0.83,"B",3]
[null,0.87,"B+",3.33]
[null,0.9,"A-",3.67]
[null,0.93,"A",4]
[null,0.97,"A+",4]
[]
[null,"Wynik i średnią ocen należy wprowadzić w kolejności rosnącej."]